Workbook

Sheet Sheet1
A1: 债权表
A2: 基准日： 2016年 3 月 20 日 单位：人民币元
A3: 序号 | B3: 债务人名称 | C3: 金额 | G3: 担保情况 | I3: 中信金资代垫诉讼费
C4: 本金 | D4: 利息 | E4: 其他债权（垫付诉讼费） | F4: 合计 | G4: 担保方式 | H4: 担保人
C5: （折合人民币金额）
A6: =COUNTA($A6:B$7) -> 1 | B6: 北京市房山周口店地区车厂农工商公司 | C6: 148,000.00 | D6: 504,619.20 | F6: =C6+D6+E6 -> 652,619.20 | G6: 保证 | H6: 北京市房山车厂煤矿 | I6: 5,163.00
A7: =COUNTA($A$7:B7) -> 2 | B7: 北京市房山区房山豆店镇田家园农工商公司 | C7: 40,000.00 | D7: 89,561.83 | F7: 129,561.83 | G7: 保证 | H7: 房山区豆店镇田家园村农场
C8: 60,000.00 | D8: 134,342.78 | F8: 194,342.78 | G8: 保证 | H8: 房山区豆店镇田家园村农场
C9: 24,000.00 | D9: 53,737.17 | F9: 77,737.17 | G9: 保证 | H9: 北京市房山区窦店镇田家园农机修理厂
C10: 30,000.00 | D10: 67,171.38 | F10: 97,171.38 | G10: 保证 | H10: 北京市新园冰淇淋厂
C11: 80,000.00 | D11: 580,190.14 | F11: 660,190.14 | G11: 保证 | H11: 北京市房山区窦店乡新园冰淇淋厂
A12: =COUNTA($A$7:B12) -> 3 | B12: 房山区东营乡西营农工商公司 | C12: 150,000.00 | D12: 188,716.90 | F12: 338,716.90 | G12: 保证 | H12: 房山区东营乡燕南印刷厂 | I12: 9,051.00
C13: 905,000.00 | D13: 1,138,591.98 | F13: 2,043,591.98 | G13: 保证 | H13: 北京市房山区东营乡农工商总公司
C14: 50,000.00 | D14: 62,905.62 | F14: 112,905.62 | G14: 保证 | H14: 北京市房山区东营乡农工商总公司
C15: 60,000.00 | D15: 75,486.77 | F15: 135,486.77 | G15: 保证 | H15: 房山区东营乡燕南印刷厂
C16: 100,000.00 | D16: 125,811.27 | F16: 225,811.27 | G16: 保证 | H16: 北京市房山区东营乡农工商总公司
C17: 181,200.00 | D17: 224,917.28 | F17: 406,117.28 | G17: 保证 | H17: 房山区东营乡燕南印刷厂
C18: 200,000.00 | D18: 248,253.22 | F18: 448,253.22 | G18: 保证 | H18: 房山区东营乡燕南印刷厂
C19: 160,000.00 | D19: 1,393,571.22 | F19: 1,553,571.22 | G19: 保证 | H19: 房山区东营乡燕南印刷厂
A20: =COUNTA($A$7:B20) -> 4 | B20: 北京市房山区南召乡西南召村农工商公司 | C20: 266,000.00 | D20: 595,586.37 | F20: 861,586.37 | G20: 保证 | H20: 北京市房山区东南召乡农工商总公司 | I20: 9,793.00
C21: 300,000.00 | D21: 671,714.01 | F21: 971,714.01 | G21: 保证 | H21: 北京市房山区东南召乡农工商总公司 | I21: 75,625.00
C22: 300,000.00 | D22: 671,714.01 | F22: 971,714.01 | G22: 保证 | H22: 北京市房山区东南召乡农工商总公司 | I22: 4,303.00
C23: 300,000.00 | D23: 671,714.01 | F23: 971,714.01 | G23: 保证 | H23: 北京市房山区东南召乡农工商总公司
C24: 300,000.00 | D24: 604,703.21 | F24: 904,703.21 | G24: 保证 | H24: 北京市房山区东南召乡农工商总公司
C25: 80,000.00 | D25: 120,136.73 | F25: 200,136.73 | G25: 保证 | H25: 北京市房山区东南召乡农工商总公司
C26: 120,000.00 | D26: 268,685.64 | F26: 388,685.64 | G26: 保证 | H26: 北京市房山区东南召乡农工商总公司
C27: 250,000.00 | D27: 4,551,081.47 | F27: 4,801,081.47 | G27: 保证 | H27: 北京市房山区东南召乡农工商总公司
C28: 250,000.00 | D28: 559,761.66 | F28: 809,761.66 | G28: 保证 | H28: 北京市房山区东南召乡农工商总公司
C29: 195,000.00 | D29: 436,614.10 | F29: 631,614.10 | G29: 保证 | H29: 北京市房山区南召乡西南召铸造厂
C30: 90,000.00 | D30: 201,514.24 | F30: 291,514.24 | G30: 保证 | H30: 北京市房山区东南召乡农工商总公司
C31: 145,000.00 | D31: 324,661.83 | F31: 469,661.83 | G31: 保证 | H31: 北京市房山区东南召乡农工商总公司
C32: 22,500.00 | D32: 50,378.72 | F32: 72,878.72 | G32: 保证 | H32: 北京市房山区东南召乡工业公司
C33: 4,000.00 | D33: 7,768.12 | F33: 11,768.12 | G33: 保证 | H33: 北京市房山区超净设备厂
C34: 20,000.00 | D34: 32,691.19 | F34: 52,691.19 | G34: 保证 | H34: 北京市房山区南召乡西南召铸造厂 北京市房山区超净设备厂
C35: 45,000.00 | D35: 74,270.40 | F35: 119,270.40 | G35: 保证 | H35: 房山区东南召乡农工商经济管理委员会
C36: 15,000.00 | D36: 33,585.74 | F36: 48,585.74 | G36: 保证 | H36: 北京市房山区南召乡西南召铸造厂
A37: =COUNTA($A$7:B37) -> 5 | B37: 北京市房山区石楼镇石楼农工商公司 | C37: 145,000.00 | D37: 451,925.43 | F37: 596,925.43 | G37: 保证 | H37: 北京市聚发化纤总厂
C38: 50,000.00 | D38: 114,793.70 | F38: 164,793.70 | G38: 保证 | H38: 北京市聚发化纤总厂
A39: =COUNTA($A$7:B39) -> 6 | B39: 房山区城关镇田各庄村农工商经济联合社 | C39: 212,000.00 | D39: 985,379.05 | F39: 1,197,379.05 | G39: 保证 | H39: 房山区房山街道办事处田各庄村农业公司
C40: 89,000.00 | D40: 199,209.56 | F40: 288,209.56 | G40: 保证 | H40: 房山区房山街道办事处田各庄村农业公司
C41: 25,000.00 | D41: 56,046.82 | F41: 81,046.82 | G41: 保证 | H41: 北京市房山区龙海纸木箱厂
A42: =COUNTA($A$7:B42) -> 7 | B42: 房山区石楼镇双柳树农工商公司 | C42: 140,000.00 | D42: 311,647.34 | F42: 451,647.34 | G42: 保证 | H42: 北京市房山区东方福利铸造厂
C43: 8,000.00 | D43: 14,020.40 | F43: 22,020.40 | G43: 保证 | H43: 北京市房山区东方福利铸造厂
C44: 10,000.00 | D44: 22,958.78 | F44: 32,958.78 | G44: 保证 | H44: 北京市房山区东方福利铸造厂
C45: 14,000.00 | D45: 32,150.89 | F45: 46,150.89 | G45: 保证 | H45: 北京市房山区石楼镇双柳树农工商公司
C46: 60,000.00 | D46: 137,789.70 | F46: 197,789.70 | G46: 保证 | H46: 北京市房山区石楼镇双柳树村铸造厂
C47: 50,000.00 | D47: 114,824.72 | F47: 164,824.72 | G47: 保证 | H47: 北京市房山区前进金属结构厂
C48: 45,000.00 | D48: 103,342.23 | F48: 148,342.23 | G48: 保证 | H48: 北京市房山区东方福利铸造厂
C49: 38,000.00 | D49: 644,104.99 | F49: 682,104.99 | G49: 保证 | H49: 北京市房山区石楼镇石楼农工商公司
A50: =COUNTA($A$7:B50) -> 8 | B50: 石楼乡杨驸马庄村农工商经联社 | C50: 35,000.00 | D50: 80,377.21 | F50: 115,377.21 | G50: 保证 | H50: 北京市悦航玻璃镀膜厂
C51: 85,000.00 | D51: 876,004.07 | F51: 961,004.07 | G51: 保证 | H51: 北京市房山区龙华电器厂
C52: 110,000.00 | D52: 252,614.24 | F52: 362,614.24 | G52: 保证 | H52: 房山县石楼乡北庄畜牧场
A53: =COUNTA($A$7:B53) -> 9 | B53: 石楼乡襄驸马庄村农工商经联社 | C53: 40,000.00 | D53: 671,673.38 | F53: 711,673.38 | G53: 保证 | H53: 北京市房山区驸马轧钢厂
C54: 9,000.00 | D54: 20,662.87 | F54: 29,662.87 | G54: 保证 | H54: 北京市房山区南庄福利铸造厂
C55: 103,000.00 | D55: 236,538.87 | F55: 339,538.87 | G55: 保证 | H55: 北京市房山区南庄福利铸造厂
C56: 75,000.00 | D56: 172,190.58 | F56: 247,190.58 | G56: 保证 | H56: 北京市房山区石楼乡南庄铸造厂
C57: 50,000.00 | D57: 114,824.72 | F57: 164,824.72 | G57: 保证 | H57: 北京市房山区石楼乡南庄铸造厂
A58: =COUNTA($A$7:B58) -> 10 | B58: 房山区石楼镇吉羊农场四分场 | C58: 50,000.00 | D58: 114,824.72 | F58: 164,824.72 | G58: 保证 | H58: 房山区石楼镇吉羊四分场猪场
A59: =COUNTA($A$7:B59) -> 11 | B59: 北京市房山区石楼乡坨头经联社 | C59: 100,000.00 | D59: 204,106.55 | F59: 304,106.55 | G59: 保证 | H59: 房山区石楼乡坨头塑料加工厂
C60: 150,000.00 | D60: 751,345.19 | F60: 901,345.19 | G60: 保证 | H60: 房山区坨头综合包装厂
A61: =COUNTA($A$7:B61) -> 12 | B61: 房山区闫村镇北坊村农工商经济联合社 | C61: 9,000.00 | D61: 20,263.77 | F61: 29,263.77 | G61: 保证 | H61: 房山区紫草坞乡北坊村猪场
C62: 60,000.00 | D62: 137,786.49 | F62: 197,786.49 | G62: 保证 | H62: 房山区紫草坞乡北坊村猪场
C63: 40,000.00 | D63: 91,857.72 | F63: 131,857.72 | G63: 保证 | H63: 房山区紫草坞乡北坊村石子厂
C64: 125,000.00 | D64: 646,877.56 | F64: 771,877.56 | G64: 保证 | H64: 房山区紫草坞乡北坊村猪场
C65: 15,000.00 | D65: 34,446.63 | F65: 49,446.63 | G65: 保证 | H65: 房山区紫草坞乡北坊村猪场
C66: 60,000.00 | D66: 112,470.83 | F66: 172,470.83 | G66: 保证 | H66: 房山区紫草坞乡北坊村猪场
A67: =COUNTA($A$7:B67) -> 13 | B67: 房山区闫村镇开古庄农工商经济联合社 | C67: 75,000.00 | D67: 194,025.12 | F67: 269,025.12 | G67: 保证 | H67: 北京市茂盛构件厂
A68: =COUNTA($A$7:B68) -> 14 | B68: 房山区闫村镇张庄村农工商经济联合社 | C68: 118,000.00 | D68: 394,185.08 | F68: 512,185.08 | G68: 保证 | H68: 北京市房山区拓业塑料厂
A69: =COUNTA($A$7:B69) -> 15 | B69: 房山区闫村镇大十三里村农工商经济联合社 | C69: 169,000.00 | D69: 487,489.89 | F69: 656,489.89 | G69: 保证 | H69: 房山区大紫草坞乡大十三里砖厂
A70: =COUNTA($A$7:B70) -> 16 | B70: 房山区闫村镇炒米店村农工商经济联合社 | C70: 65,000.00 | D70: 149,268.69 | F70: =C70+D70+E70 -> 214,268.69 | G70: 保证 | H70: 北京市房山区闫村镇炒米店砖厂
C71: 368,000.00 | D71: 1,480,113.52 | F71: 1,848,113.52 | G71: 保证 | H71: 北京市房山区翔远建筑工程公司
C72: 28,500.00 | D72: 65,445.56 | F72: 93,945.56 | G72: 保证 | H72: 北京市房山区闫村镇炒米店砖厂
A73: =COUNTA($A$7:B73) -> 17 | B73: 房山区闫村镇焦庄村农工商经济联合社 | C73: 47,000.00 | D73: 141,912.90 | F73: 188,912.90 | G73: 保证 | H73: 房山区紫草坞乡焦庄村畜牧场
A74: =COUNTA($A$7:B74) -> 18 | B74: 房山区葫芦垡乡公议庄村农工商经济联和社 | C74: 59,000.00 | D74: 135,493.16 | F74: 194,493.16 | G74: 保证 | H74: 北京市房山区葫芦垡乡农工商经济管理委员会
C75: 50,000.00 | D75: 114,824.72 | F75: 164,824.72 | G75: 保证 | H75: 北京市房山区葫芦垡乡农工商总公司
C76: 7,000.00 | D76: 16,075.43 | F76: 23,075.43 | G76: 保证 | H76: 北京市房山区葫芦垡乡农工商总公司
C77: 30,000.00 | D77: 68,894.81 | F77: 98,894.81 | G77: 保证 | H77: 北京市房山区葫芦垡乡农工商总公司
C78: 28,500.00 | D78: 65,450.26 | F78: 93,950.26 | G78: 保证 | H78: 北京市房山区葫芦垡乡农工商总公司
C79: 85,000.00 | D79: 1,370,060.70 | F79: 1,455,060.70 | G79: 保证 | H79: 北京市房山区葫芦垡乡公议庄原煤加工厂
C80: 29,000.00 | D80: 66,598.34 | F80: 95,598.34 | G80: 保证 | H80: 北京市房山区葫芦垡工业公司 北京市房山区葫芦垡乡林业工作站
A81: =COUNTA($A$7:B81) -> 19 | B81: 房山区闫村镇二合庄村农工商经济联合社 | C81: 105,000.00 | D81: 466,377.11 | F81: 571,377.11 | G81: 保证 | H81: 北京双合化工厂
C82: 61,000.00 | D82: 140,048.35 | F82: 201,048.35 | G82: 保证 | H82: 北京市房山区紫草坞紫化助剂厂
A83: =COUNTA($A$7:B83) -> 20 | B83: 房山区葫芦垡乡佛满村农工商经济联合社 | C83: 15,000.00 | D83: 331,809.06 | F83: 346,809.06 | G83: 保证 | H83: 房山区葫芦垡乡佛满村种猪场
A84: =COUNTA($A$7:B84) -> 21 | B84: 房山区葫芦乡赵庄村农工商经济联合社 | C84: 30,000.00 | D84: 68,894.81 | F84: 98,894.81 | G84: 保证 | H84: 北京市房山区葫芦垡乡林业工作站 北京市房山区葫芦垡工业公司
C85: 15,000.00 | D85: 149,731.02 | F85: 164,731.02 | G85: 保证 | H85: 北京市房山区葫芦垡乡农工商总公司
C86: 3,493.00 | D86: 8,021.32 | F86: 11,514.32 | G86: 保证 | H86: 北京市房山区葫芦垡乡农工商总公司
A87: =COUNTA($A$7:B87) -> 22 | B87: 房山区葫芦垡乡西场村农工商经济联合社 | C87: 100,000.00 | D87: 229,649.40 | F87: 329,649.40 | G87: 保证 | H87: 北京市房山区葫芦垡乡农工商总公司工业公司
C88: 100,000.00 | D88: 547,235.25 | F88: 647,235.25 | G88: 保证 | H88: 北京市房山区葫芦垡乡农工商总公司
C89: 15,000.00 | D89: 34,447.40 | F89: 49,447.40 | G89: 保证 | H89: 北京市房山区葫芦垡乡农工商总公司
C90: 18,000.00 | D90: 41,336.94 | F90: 59,336.94 | G90: 保证 | H90: 北京市房山区葫芦垡乡农工商总公司
C91: 30,000.00 | D91: 68,894.81 | F91: 98,894.81 | G91: 保证 | H91: 北京市房山区葫芦垡乡农工商总公司
C92: 30,000.00 | D92: 68,894.81 | F92: 98,894.81 | G92: 保证 | H92: 北京市房山区葫芦垡乡农工商总公司
C93: 47,000.00 | D93: 107,935.27 | F93: 154,935.27 | G93: 保证 | H93: 北京市房山区葫芦垡乡农工商经济管理委员会
C94: 10,000.00 | D94: 22,958.78 | F94: 32,958.78 | G94: 保证 | H94: 北京市房山区葫芦垡乡农工商经济管理委员会
A95: =COUNTA($A$7:B95) -> 23 | B95: 房山区葫芦垡乡朱岗子村农工商经济联合社 | C95: 20,000.00 | D95: 45,929.90 | F95: 65,929.90 | G95: 保证 | H95: 北京市房山区葫芦垡乡农工商总公司
C96: 35,000.00 | D96: 434,461.76 | F96: 469,461.76 | G96: 保证 | H96: 北京市房山华日制衣厂
C97: 107,000.00 | D97: 245,724.83 | F97: 352,724.83 | G97: 保证 | H97: 北京市房山华日制衣厂
C98: 12,000.00 | D98: 27,557.98 | F98: 39,557.98 | G98: 保证 | H98: 北京市房山华日制衣厂
C99: 15,000.00 | D99: 34,447.40 | F99: 49,447.40 | G99: 保证 | H99: 北京市房山华日制衣厂
A100: =COUNTA($A$7:B100) -> 24 | B100: 房山区葫芦垡乡闫仙垡村农工商经济联合社 | C100: 6,000.00 | D100: 13,778.99 | F100: 19,778.99 | G100: 保证 | H100: 北京市房山区葫芦垡乡农工商总公司工业公司
C101: 35,000.00 | D101: 80,377.21 | F101: 115,377.21 | G101: 保证 | H101: 北京市房山区葫芦垡乡林业工作站 北京市房山区葫芦垡工业公司
C102: 47,000.00 | D102: 416,831.99 | F102: 463,831.99 | G102: 保证 | H102: 北京市房山区葫芦垡乡农工商经济管理委员会
C103: 13,000.00 | D103: 29,854.46 | F103: 42,854.46 | G103: 保证 | H103: 北京市房山区葫芦垡乡农工商经济管理委员会
C104: 15,000.00 | D104: 34,447.40 | F104: 49,447.40 | G104: 保证 | H104: 北京市房山区葫芦垡乡农工商经济管理委员会
A105: =COUNTA($A$7:B105) -> 25 | B105: 房山区官道乡官道村农工商经济联合社 | C105: 13,000.00 | D105: 29,853.75 | F105: 42,853.75 | G105: 保证 | H105: 房山区官道乡官道砖厂
C106: 143,392.30 | D106: 545,915.03 | F106: 689,307.33 | G106: 保证 | H106: 北京市房山区官道乡农工商总公司 房山区官道乡管道砖厂
A107: =COUNTA($A$7:B107) -> 26 | B107: 房山区官道乡后石羊村农工商经济联合社 | C107: 5,000.00 | D107: 11,482.26 | F107: 16,482.26 | G107: 保证 | H107: 北京市房山区官道乡后石羊构件厂
C108: 15,000.00 | D108: 34,446.63 | F108: 49,446.63 | G108: 保证 | H108: 北京市房山区官道乡后石羊构件厂
C109: 30,000.00 | D109: 234,516.66 | F109: 264,516.66 | G109: 保证 | H109: 北京市房山区官道乡后石羊构件厂 房山区官道乡后石羊砖厂
C110: 24,671.60 | D110: 78,872.97 | F110: 103,544.57 | G110: 保证 | H110: 北京市房山区官道乡农工商经济管理委员会
A111: =COUNTA($A$7:B111) -> 27 | B111: 房山区官道乡西石羊村农工商经济联合社 | C111: 15,000.00 | D111: 34,446.63 | F111: 49,446.63 | G111: 保证 | H111: 北京市房山区官道乡农工商总公司 北京市房山区管道纸箱厂
C112: 40,000.00 | D112: 290,872.57 | F112: 330,872.57 | G112: 保证 | H112: 北京市房山区官道乡农工商经济管理委员会
A113: =COUNTA($A$7:B113) -> 28 | B113: 房山区官道乡鲁村农工商经济联合社 | C113: 20,000.00 | D113: 22,608.71 | F113: 42,608.71 | G113: 保证 | H113: 房山区官道乡修配厂
C114: 20,000.00 | D114: 22,608.71 | F114: 42,608.71 | G114: 保证 | H114: 北京市房山区京球机械厂
C115: 50,000.00 | D115: 55,571.10 | F115: 105,571.10 | G115: 保证 | H115: 北京市房山区官道乡农工商总公司 北京市房山区管道涂料厂
C116: 35,000.00 | D116: 39,565.23 | F116: 74,565.23 | G116: 保证 | H116: 北京市房山区官道乡合作经济联合社
C117: 86,000.00 | D117: 315,786.92 | F117: 401,786.92 | G117: 保证 | H117: 北京市房山区官道乡农工商经济管理委员会 北京市房山区管道涂料厂
C118: 10,000.00 | D118: 11,304.31 | F118: 21,304.31 | G118: 保证 | H118: 北京市房山区官道乡农工商经济管理委员会 北京市房山区管道涂料厂
A119: =COUNTA($A$7:B119) -> 29 | B119: 房山区官道乡张谢村农工商经济联合社 | C119: 50,000.00 | D119: 100,603.13 | F119: 150,603.13 | G119: 保证 | H119: 北京市房山区官道乡农工商总公司
A120: =COUNTA($A$7:B120) -> 30 | B120: 房山区良乡镇一街村农工商经济联合社 | C120: 120,000.00 | D120: 180,326.27 | F120: 300,326.27 | G120: 保证 | H120: 北京市房山区良乡东方福利厂
C121: 50,000.00 | D121: 101,198.13 | F121: 151,198.13 | G121: 保证 | H121: 北京市房山区良乡东方福利厂
A122: =COUNTA($A$7:B122) -> 31 | B122: 北京市青龙湖镇晓幼营村农工商公司 | C122: 1,150,000.00 | D122: 1,349,785.35 | F122: 2,499,785.35 | G122: 保证 | H122: 北京市房山晓幼营石灰厂 | I122: 13,399.00
A123: =COUNTA($A$7:B123) -> 32 | B123: 房山区葫芦垡乡夏场村农工商经济联合社 | C123: 500,000.00 | D123: 769,491.52 | F123: 1,269,491.52 | G123: 保证 | H123: 北京市房山区葫芦垡乡农工商总公司工业公司
A124: =COUNTA($A$7:B124) -> 33 | B124: 房山区琉璃河乡白庄村农工商经济联合社 | C124: 200,000.00 | D124: 619,506.45 | F124: 819,506.45 | G124: 保证 | H124: 北京琉璃河贸易中心
A125: =COUNTA($A$7:B125) -> 34 | B125: 房山区琉璃河乡杨户屯经济联合社 | C125: 33,000.00 | D125: 73,888.50 | F125: 106,888.50 | G125: 保证 | H125: 北京远宇运输公司
C126: 30,000.00 | D126: 67,171.38 | F126: 97,171.38 | G126: 保证 | H126: 房山区琉璃河建筑设备机装队
C127: 50,000.00 | D127: 380,665.08 | F127: 430,665.08 | G127: 保证 | H127: 北京市房山区友谊木材傢俱厂
A128: =COUNTA($A$7:B128) -> 35 | B128: 房山区琉璃河乡李庄村农工商经济联合社 | C128: 250,000.00 | D128: 541,776.54 | F128: 791,776.54 | G128: 保证 | H128: 北京市房山区人民政府琉璃河地区农工商总公司
C129: 250,000.00 | D129: 1,404,324.52 | F129: 1,654,324.52 | G129: 保证 | H129: 北京市房山区人民政府琉璃河地区农工商总公司
C130: 50,000.00 | D130: 100,636.33 | F130: 150,636.33 | G130: 保证 | H130: 北京市琉璃河楼外电梯厂
A131: =COUNTA($A$7:B131) -> 36 | B131: 房山区琉璃河乡三街村农工商经济联合社 | C131: 100,000.00 | D131: 981,755.96 | F131: 1,081,755.96 | G131: 保证 | H131: 北京市房山区人民政府琉璃河地区农工商总公司
C132: 100,000.00 | D132: 223,904.63 | F132: 323,904.63 | G132: 保证 | H132: 北京市房山区人民政府琉璃河地区农工商总公司
C133: 100,000.00 | D133: 223,904.63 | F133: 323,904.63 | G133: 保证 | H133: 北京市房山区人民政府琉璃河地区农工商总公司
C134: 40,000.00 | D134: 89,561.83 | F134: =C134+D134+E134 -> 129,561.83 | G134: 保证 | H134: 北京市房山区燕琉建筑工程公司
C135: 95,000.00 | D135: 212,709.47 | F135: 307,709.47 | G135: 保证 | H135: 北京市房山区人民政府琉璃河地区农工商总公司
C136: 70,000.00 | D136: 156,733.24 | F136: 226,733.24 | G136: 保证 | H136: 北京京津化工颜料有限公司
C137: 23,500.00 | D137: 57,587.04 | F137: 81,087.04 | G137: 保证 | H137: 北京京津化工颜料有限公司
A138: =COUNTA($A$7:B138) -> 37 | B138: 房山区琉璃河乡北洛村农工商经济联合社 | C138: 14,000.00 | D138: 26,522.33 | F138: 40,522.33 | G138: 保证 | H138: 北京市房山区人民政府琉璃河地区农工商总公司
A139: =COUNTA($A$7:B139) -> 38 | B139: 房山区琉璃河乡刘李店村农工商经济联合社 | C139: 150,000.00 | D139: 335,856.98 | F139: 485,856.98 | G139: 保证 | H139: 北京市房山区人民政府琉璃河地区农工商总公司
C140: 200,000.00 | D140: 447,809.41 | F140: 647,809.41 | G140: 保证 | H140: 北京市房山区刘李店福利化工厂
C141: 153,000.00 | D141: 1,495,196.53 | F141: 1,648,196.53 | G141: 保证 | H141: 北京中原肉联厂
C142: 100,000.00 | D142: 223,904.63 | F142: 323,904.63 | G142: 保证 | H142: 北京中原肉联厂
C143: 50,000.00 | D143: 111,952.38 | F143: 161,952.38 | G143: 保证 | H143: 北京市房山区人民政府琉璃河地区农工商总公司
C144: 46,000.00 | D144: 102,996.13 | F144: 148,996.13 | G144: 保证 | H144: 北京市房山区人民政府琉璃河地区农工商总公司
C145: 150,000.00 | D145: 335,856.98 | F145: 485,856.98 | G145: 保证 | H145: 北京市房山刘李店福利化工厂
C146: 50,000.00 | D146: 111,921.43 | F146: 161,921.43 | G146: 保证 | H146: 北京中原肉联厂
A147: =COUNTA($A$7:B147) -> 39 | B147: 房山区琉璃河乡古庄村农工商经济联合社 | C147: 110,000.00 | D147: 535,727.95 | F147: 645,727.95 | G147: 保证 | H147: 北京市房山区人民政府琉璃河地区农工商总公司
C148: 70,000.00 | D148: 156,733.24 | F148: 226,733.24 | G148: 保证 | H148: 北京市房山区人民政府琉璃河地区农工商总公司
C149: 30,000.00 | D149: 67,171.38 | F149: 97,171.38 | G149: 保证 | H149: 北京市房山区人民政府琉璃河地区农工商总公司
C150: 20,000.00 | D150: 44,768.52 | F150: 64,768.52 | G150: 保证 | H150: 北京市房山区琉璃河乡古庄村村民委员会
C151: 20,000.00 | D151: 44,768.52 | F151: 64,768.52 | G151: 保证 | H151: 北京市房山区人民政府琉璃河地区农工商总公司
A152: =COUNTA($A$7:B152) -> 40 | B152: 房山区琉璃河乡洄城村农工商经济联合社 | C152: 40,000.00 | D152: 90,245.01 | F152: 130,245.01 | G152: 保证 | H152: 北京市利博隆商贸有限责任公司
C153: 80,000.00 | D153: 170,047.61 | F153: 250,047.61 | G153: 保证 | H153: 北京市房山区人民政府琉璃河地区农工商总公司
C154: 30,000.00 | D154: 67,171.38 | F154: 97,171.38 | G154: 保证 | H154: 北京市房山区人民政府琉璃河地区农工商总公司
C155: 170,000.00 | D155: 961,987.72 | F155: 1,131,987.72 | G155: 保证 | H155: 北京市房山区人民政府琉璃河地区农工商总公司
A156: =COUNTA($A$7:B156) -> 41 | B156: 房山区琉璃河乡立教村农工商经济联合社 | C156: 200,000.00 | D156: 447,809.41 | F156: 647,809.41 | G156: 保证 | H156: 北京市房山区立新福利造纸厂
C157: 267,000.00 | D157: 1,311,693.92 | F157: 1,578,693.92 | G157: 保证 | H157: 北京市房山区立新福利造纸厂
C158: 3,300.00 | D158: 7,388.95 | F158: 10,688.95 | G158: 保证 | H158: 房山区琉璃河立教造纸厂
C159: 7,740.00 | D159: 17,330.39 | F159: 25,070.39 | G159: 保证 | H159: 房山区琉璃河立教造纸厂
C160: 50,000.00 | D160: 106,881.19 | F160: 156,881.19 | G160: 保证 | H160: 房山区琉璃河立教造纸厂
A161: =COUNTA($A$7:B161) -> 42 | B161: 房山区琉璃河乡庄头村农工商经济联合社 | C161: 270,000.00 | D161: 1,257,753.40 | F161: 1,527,753.40 | G161: 保证 | H161: 北京市房山区琉璃河庄头砖厂
C162: 40,000.00 | D162: 89,394.98 | F162: 129,394.98 | G162: 保证 | H162: 北京市房山区琉璃河庄头砖厂
C163: 16,700.00 | D163: 36,382.14 | F163: 53,082.14 | G163: 保证 | H163: 北京市房山区琉璃河乡庄头村村民委员会
C164: 70,000.00 | D164: 121,841.28 | F164: 191,841.28 | G164: 保证 | H164: 北京市房山区琉璃河庄头砖厂
A165: =COUNTA($A$7:B165) -> 43 | B165: 房山区琉璃河乡黄土坡村农工商经济联合社 | C165: 6,600.00 | D165: 30,107.37 | F165: 36,707.37 | G165: 保证 | H165: 北京市房山区琉璃河乡黄土坡村村农委员会
A166: =COUNTA($A$7:B166) -> 44 | B166: 房山区琉璃河乡董家林村农工商经济联合社 | C166: 8,000.00 | D166: 17,912.43 | F166: 25,912.43 | G166: 保证 | H166: 房山区琉璃河乡董家林化工厂
C167: 30,000.00 | D167: 67,171.38 | F167: 97,171.38 | G167: 保证 | H167: 房山县琉璃河公社苳家林大队化工厂
C168: 47,000.00 | D168: 393,090.39 | F168: 440,090.39 | G168: 保证 | H168: 房山县琉璃河苳家林化工厂
C169: 35,000.00 | D169: 78,366.64 | F169: 113,366.64 | G169: 保证 | H169: 北京市房山燕都锂厂
C170: 20,000.00 | D170: 44,781.02 | F170: 64,781.02 | G170: 保证 | H170: 北京市房山区人民政府琉璃河地区农工商总公司
A171: =COUNTA($A$7:B171) -> 45 | B171: 房山区窦店镇西安庄村农工商经济联合社 | C171: 36,000.00 | D171: 80,605.67 | F171: 116,605.67 | G171: 保证 | H171: 房山区豆店乡西安庄地毯厂
C172: 40,000.00 | D172: 272,746.44 | F172: 312,746.44 | G172: 保证 | H172: 房山区豆店乡西安庄地毯厂 北京市房山区窦店镇农工商经济管理委员会
A173: =COUNTA($A$7:B173) -> 46 | B173: 北京市房山区窦店镇瓦窑头村农场 | C173: 80,000.00 | D173: 346,684.05 | F173: 426,684.05 | G173: 保证 | H173: 北京市房山区窦店镇瓦窑头农工商公司
A174: =COUNTA($A$7:B174) -> 47 | B174: 房山区豆店乡七里店村农工商经济联合社 | C174: 90,000.00 | D174: 201,514.24 | F174: 291,514.24 | G174: 保证 | H174: 北京市房山区豆店乡七里店砖厂
C175: 40,000.00 | D175: 89,561.83 | F175: 129,561.83 | G175: 保证 | H175: 北京市房山区豆店乡七里店砖厂
C176: 300,000.00 | D176: 1,881,322.59 | F176: 2,181,322.59 | G176: 保证 | H176: 北京市房山区豆店乡七里店砖厂
C177: 150,000.00 | D177: 335,856.97 | F177: 485,856.97 | G177: 保证 | H177: 北京市房山区京房汽车修理站
C178: 70,000.00 | D178: 156,733.24 | F178: 226,733.24 | G178: 保证 | H178: 北京市房山线路板厂
C179: 15,000.00 | D179: 33,585.74 | F179: 48,585.74 | G179: 保证 | H179: 北京市房山区豆店乡七里店砖厂
A180: =COUNTA($A$7:B180) -> 48 | B180: 房山区窦店镇于庄村农工商经济联合社 | C180: 70,000.00 | D180: 120,234.40 | F180: 190,234.40 | G180: 保证 | H180: 北京市房山区三友制线厂
C181: 30,000.00 | D181: 67,171.38 | F181: 97,171.38 | G181: 保证 | H181: 北京市房山区兴华金属结构厂
C182: 15,000.00 | D182: 25,826.94 | F182: 40,826.94 | G182: 保证 | H182: 北京市房山区兴华金属结构厂
C183: 40,000.00 | D183: 89,561.83 | F183: 129,561.83 | G183: 保证 | H183: 北京市房山区兴宇时装公司
C184: 41,000.00 | D184: 91,800.90 | F184: 132,800.90 | G184: 保证 | H184: 北京市房山区兴华金属结构厂
C185: 30,000.00 | D185: 67,171.38 | F185: 97,171.38 | G185: 保证 | H185: 北京市房山区兴华金属结构厂
C186: 40,000.00 | D186: 63,552.56 | F186: 103,552.56 | G186: 保证 | H186: 北京市房山区兴华金属结构厂
C187: 18,000.00 | D187: 37,697.26 | F187: 55,697.26 | G187: 保证 | H187: 北京市房山区窦店于庄砖厂
C188: 15,000.00 | D188: 27,876.72 | F188: 42,876.72 | G188: 保证 | H188: 北京市房山区窦店于庄砖厂
C189: 50,000.00 | D189: 689,386.99 | F189: 739,386.99 | G189: 保证 | H189: 北京市房山区兴华金属结构厂
A190: =COUNTA($A$7:B190) -> 49 | B190: 房山区窦店镇下坡店村农工商经济联合社 | C190: 300,000.00 | D190: 1,281,659.89 | F190: 1,581,659.89 | G190: 保证 | H190: 北京市鑫都门窗厂
C191: 240,000.00 | D191: 397,029.22 | F191: 637,029.22 | G191: 保证 | H191: 北京市鑫都门窗厂
C192: 13,500.00 | D192: 29,398.49 | F192: 42,898.49 | G192: 保证 | H192: 北京市房山区窦店乡下坡店第二砖厂
A193: =COUNTA($A$7:B193) -> 50 | B193: 房山区窦店镇瓦窑头村农工商经济联合社 | C193: 20,000.00 | D193: 28,638.34 | F193: 48,638.34 | G193: 保证 | H193: 房山区窦店乡瓦窑头砖厂
C194: 100,000.00 | D194: 253,557.31 | F194: 353,557.31 | G194: 保证 | H194: 房山区窦店乡瓦窑头砖厂
A195: =COUNTA($A$7:B195) -> 51 | B195: 北京市房山区交道乡前柳村农工商经济联合社 | C195: 40,000.00 | D195: 89,561.83 | F195: 129,561.83 | G195: 保证 | H195: 北京市房山区京益酱菜厂
C196: 95,300.00 | D196: 622,833.12 | F196: 718,133.12 | G196: 保证 | H196: 北京市房山区京益酱菜厂
C197: 18,000.00 | D197: 40,302.88 | F197: 58,302.88 | G197: 保证 | H197: 北京市房山区京益酱菜厂
C198: 8,000.00 | D198: 17,912.45 | F198: =C198+D198+E198 -> 25,912.45 | G198: 保证 | H198: 北京市房山区交道乡农工商总公司
C199: 5,000.00 | D199: 11,195.18 | F199: 16,195.18 | G199: 保证 | H199: 北京市房山区交道乡农工商总公司
C200: 30,000.00 | D200: 67,171.38 | F200: 97,171.38 | G200: 保证 | H200: 北京市房山区交道乡农工商总公司
... 803 more rows
